fUST/lending_fUST_20250809
["ID","MTS","AMOUNT","RATE_DAILY","PERIOD"]
[378059294,1754712647756,-460.0,0.00022465,2]
[378059295,1754712647766,-460.0,0.00022465,2]
[378059296,1754712647777,-460.0,0.00022465,2]
[378059297,1754712647786,-1671.9,0.00022465,2]
[378059298,1754712647795,-460.0,0.00022465,2]
[378059299,1754712647805,-949.18,0.00022465,2]
[378059300,1754712647814,-460.0,0.00022465,2]
[378059301,1754712647823,-460.0,0.00022465,2]
[378059302,1754712647832,-550.47,0.00022465,2]
[378059303,1754712647842,-3051.85,0.00022465,2]
[378059304,1754712647851,-460.0,0.00022465,2]
[378059305,1754712647860,-460.0,0.00022465,2]
[378059306,1754712647870,-460.0,0.00022465,2]
[378059307,1754712647879,-460.0,0.00022465,2]
[378059308,1754712647889,-460.0,0.00022465,2]
[378059309,1754712647899,-460.0,0.00022465,2]
[378059310,1754712647909,-460.0,0.00022465,2]
[378059311,1754712647918,-1072.11,0.00022465,2]
[378059312,1754712647927,-460.0,0.00022465,2]
[378059313,1754712647936,-799.57,0.00022465,2]
[378059314,1754712647945,-460.0,0.00022465,2]
[378059315,1754712647954,-891.39,0.00022465,2]
[378059316,1754712647964,-578.24,0.00022465,2]
[378059317,1754712647973,-151.0,0.000225,8]
[378059318,1754712647982,-151.0,0.00022501,2]
[378059319,1754712647992,-151.0,0.00022501,2]
[378059320,1754712648001,-249.95633272,0.00022501,2]
[378059321,1754712648011,-151.0,0.00022501,2]
[378059322,1754712648021,-151.0,0.00022501,7]
[378059323,1754712648030,-154.228275,0.00022501,7]
[378059324,1754712648040,-1000.0,0.00022521,2]
[378059325,1754712648049,-1005.76742711,0.00022521,2]
[378059326,1754712648058,-1001.21377576,0.00022521,2]
[378059327,1754712648067,-1000.0,0.00022521,2]
[378059328,1754712648074,-1004.00151576,0.00022521,2]
[378059329,1754712648082,-1000.0,0.00022521,2]
[378059330,1754712648090,-1000.0,0.00022521,2]
[378059331,1754712648098,-1001.22332869,0.00022521,2]
[378059332,1754712648107,-592.18039757,0.00022521,2]
[378059333,1754712648116,-1000.92627552,0.00022521,2]
[378059334,1754712648125,-570.00329129,0.00022521,2]
[378059335,1754712648135,-1000.0,0.00022521,2]
[378059336,1754712648144,-1000.0,0.00022521,2]
[378059337,1754712648154,-1000.0,0.00022521,2]
[378059338,1754712648163,-392.07726344,0.00022521,2]
[378059339,1754712648172,-1000.0,0.00022521,2]
[378059340,1754712648182,-1000.0,0.00022521,2]
[378059341,1754712648191,-504.47162244,0.00022521,2]
[378059342,1754712648201,-501.21025951,0.00022521,2]
[378059343,1754712648211,-1001.83906,0.00022521,2]
[378059344,1754712648220,-458.90736978,0.00022521,2]
[378059345,1754712648229,-502.01602962,0.00022521,2]
[378059346,1754712648239,-1003.69426877,0.00022521,2]
[378059347,1754712648248,-384.37993711,0.00022521,2]
[378059348,1754712648257,-1005.06929994,0.00022521,2]
[378059349,1754712648267,-1001.78237328,0.00022521,2]
[378059350,1754712648278,-151.676585,0.00022573,2]
[378059351,1754712648287,-168.0,0.00022575,2]
[378059352,1754712648297,-358.0,0.00022675,2]
[378059353,1754712648307,-1102.23786566,0.000227,2]
[378059354,1754712648316,-151.0,0.000227,5]
[378059355,1754712648326,-509.01474091,0.00022721,2]
[378059356,1754712648335,-302.83777883,0.00022721,2]
[378059357,1754712648345,-514.36454539,0.00022721,2]
[378059358,1754712648354,-501.3331216,0.00022721,2]
[378059359,1754712648363,-1000.0,0.00022721,2]
[378059360,1754712648373,-1000.0,0.00022721,2]
[378059361,1754712648382,-680.32577956,0.00022721,2]
[378059362,1754712648392,-1092.35057706,0.00022721,2]
[378059363,1754712648402,-1001.81975926,0.00022721,2]
[378059364,1754712648411,-1004.42178589,0.00022721,2]
[378059365,1754712648421,-250.0,0.00022721,2]
[378059366,1754712648430,-502.38537494,0.00022721,2]
[378059367,1754712648440,-1000.0,0.00022721,2]
[378059368,1754712648450,-1000.0,0.00022721,2]
[378059369,1754712648462,-1002.14349495,0.00022721,2]
[378059370,1754712648481,-503.03309866,0.00022721,2]
[378059371,1754712648490,-464.19647516,0.00022721,2]
[378059372,1754712648499,-1000.0,0.00022721,2]
[378059373,1754712648509,-502.50505203,0.00022721,2]
[378059374,1754712648519,-1001.97502455,0.00022721,2]
[378059375,1754712648528,-940.65131175,0.00022721,2]
[378059376,1754712648537,-1001.03349238,0.00022721,2]
[378059377,1754712648547,-1001.64131963,0.00022721,2]
[378059378,1754712648556,-1001.02231364,0.00022721,2]
[378059379,1754712648566,-560.74834892,0.00022721,2]
[378059380,1754712648575,-1000.0,0.00022721,2]
[378059381,1754712648584,-1000.0,0.00022721,2]
[378059382,1754712648594,-1000.0,0.00022721,2]
[378059383,1754712648603,-1000.0,0.00022721,2]
[378059384,1754712648612,-151.0,0.00022721,7]
[378059385,1754712648621,-5.77983174,0.00022721,7]
[378059386,1754712648902,-151.0,0.00021973,7]
[378059387,1754712648912,-353.13894904,0.00022,2]
[378059390,1754712760134,250.03210403,0.000199,2]
[378059392,1754712958409,237.2917288,0.000199,2]
[378059393,1754712989372,1602.11,0.0002145,2]
[378059396,1754713060505,500.62056137,0.00021,2]
[378059398,1754713163544,229.3820047,0.000199,2]
[378059402,1754713232303,160.118391,0.00013699,2]
[378059403,1754713232426,160.118391,0.00021404,2]
[378059404,1754713373694,221.72378585,0.000199,2]
[378059413,1754713578607,214.33299294,0.000199,2]
[378059416,1754713656067,214.9746767,0.00031673,120]
[378059428,1754713754576,710.33295181,0.000199,2]
[378059473,1754713832482,-710.33295153,0.00021655,2]
[378059474,1754713832492,-300.0,0.00021716,2]
[378059475,1754713832501,-1700.20734066,0.00021717,2]
[378059476,1754713832513,-322.97988327,0.00021717,2]
[378059477,1754713832524,-10891.78395398,0.00021717,2]
[378059480,1754713832592,-8118.62143043,0.00021717,2]
[378059496,1754713838563,-159466.60190463,0.00021717,2]
[378059497,1754713838572,-200.0,0.00021717,10]
[378059499,1754713838582,-204.298671,0.00021717,10]
[378059501,1754713838592,-19010.40538441,0.00021773,2]
[378059502,1754713838602,-500.0,0.00021773,2]
[378059503,1754713838611,-252.4526827,0.00021773,2]
[378059504,1754713838621,-500.0,0.00021773,2]
[378059505,1754713838631,-500.0,0.00021773,2]
[378059506,1754713838641,-302.83777883,0.00021773,2]
[378059507,1754713838651,-509.01474091,0.00021773,2]
[378059508,1754713838660,-514.36454539,0.00021773,2]
[378059509,1754713838670,-500.0,0.00021773,2]
[378059510,1754713838679,-500.0,0.00021773,2]
[378059511,1754713838689,-502.00360691,0.00021773,2]
[378059512,1754713838698,-500.0,0.00021773,2]
[378059513,1754713838708,-500.0,0.00021773,2]
[378059514,1754713838718,-1416.75481718,0.00021817,3]
[378059515,1754713838728,-151.8381875,0.00021904,2]
[378059516,1754713838738,-151.0,0.00021904,2]
[378059517,1754713838747,-151.0,0.00021904,2]
[378059518,1754713838757,-151.0,0.00021904,2]
[378059519,1754713838767,-151.0,0.00021904,2]
[378059520,1754713838776,-151.0,0.00021904,2]
[378059521,1754713838786,-151.0,0.00021904,2]
[378059523,1754713838795,-151.0,0.00021904,2]
[378059525,1754713838805,-160.15422271,0.00021904,2]
[378059527,1754713838814,-837.77354081,0.00021916,2]
[378059529,1754713838823,-837.77354081,0.00021916,2]
[378059531,1754713838837,-837.77354081,0.00021916,2]
[378059533,1754713838846,-837.77354081,0.00021916,2]
[378059535,1754713838856,-837.77354081,0.00021916,2]
[378059537,1754713838865,-837.77354081,0.00021916,2]
[378059539,1754713838875,-837.77354081,0.00021916,2]
[378059541,1754713838885,-837.77354081,0.00021916,2]
[378059543,1754713838895,-837.77354081,0.00021916,2]
[378059544,1754713838905,-837.77354081,0.00021916,2]
[378059545,1754713838915,-837.77354081,0.00021916,2]
[378059548,1754713838925,-837.77354081,0.00021916,2]
[378059549,1754713838934,-837.77354081,0.00021916,2]
[378059552,1754713838944,-837.77354081,0.00021916,2]
[378059554,1754713838954,-837.77354081,0.00021916,2]
[378059556,1754713838964,-837.77354081,0.00021916,2]
[378059558,1754713838973,-837.77354081,0.00021916,2]
[378059560,1754713838982,-837.77354081,0.00021916,2]
[378059561,1754713838991,-837.77354081,0.00021916,2]
[378059563,1754713839001,-837.77354081,0.00021916,2]
[378059565,1754713839010,-837.77354081,0.00021916,2]
[378059567,1754713839021,-152.472805,0.00021917,2]
[378059569,1754713839030,-462.52503712,0.00021917,2]
[378059570,1754713839040,-460.0,0.00021917,2]
[378059571,1754713839050,-460.0,0.00021917,2]
[378059572,1754713839059,-460.0,0.00021917,2]
[378059573,1754713839069,-460.0,0.00021917,2]
[378059574,1754713839079,-462.1903293,0.00021917,2]
[378059575,1754713839088,-460.0,0.00021917,2]
[378059576,1754713839098,-460.0,0.00021917,2]
[378059577,1754713839107,-439.09150514,0.00021917,2]
[378059578,1754713839117,-466.2050307,0.00021917,2]
[378059579,1754713839126,-444.84540637,0.00021917,2]
[378059580,1754713839136,-460.0,0.00021917,2]
[378059581,1754713839145,-460.0,0.00021917,2]
[378059582,1754713839155,-326.99591844,0.00021917,2]
[378059583,1754713839164,-460.0,0.00021917,2]
[378059584,1754713839177,-467.18070801,0.00021917,2]
[378059585,1754713839186,-460.0,0.00021917,2]
[378059586,1754713839196,-460.0,0.00021917,2]
[378059587,1754713839205,-467.07152766,0.00021917,2]
[378059588,1754713839216,-460.0,0.00021917,2]
[378059589,1754713839226,-460.0,0.00021917,2]
[378059590,1754713839235,-460.0,0.00021917,2]
[378059591,1754713839247,-469.85262494,0.00021917,2]
[378059592,1754713839256,-461.25330587,0.00021917,2]
[378059593,1754713839266,-464.07737173,0.00021917,2]
[378059594,1754713839275,-460.0,0.00021917,2]
[378059595,1754713839287,-477.42060541,0.00021917,2]
[378059596,1754713839297,-460.0,0.00021917,2]
[378059597,1754713839306,-462.48849881,0.00021917,2]
[378059598,1754713839316,-460.0,0.00021917,2]
[378059599,1754713839325,-460.0,0.00021917,2]
[378059600,1754713839336,-460.0,0.00021917,2]
[378059601,1754713839345,-460.0,0.00021917,2]
[378059602,1754713839355,-460.0,0.00021917,2]
[378059603,1754713839364,-460.0,0.00021917,2]
[378059604,1754713839374,-460.0,0.00021917,2]
[378059605,1754713839383,-464.48928358,0.00021917,2]
[378059606,1754713839393,-464.33880988,0.00021917,2]
[378059607,1754713839402,-462.03043671,0.00021917,2]
[378059608,1754713839412,-520.18,0.00021917,2]
[378059609,1754713839421,-460.0,0.00021917,2]
[378059610,1754713839431,-462.74768608,0.00021917,2]
[378059611,1754713839440,-463.93325067,0.00021917,2]
[378059612,1754713839450,-460.0,0.00021917,2]
[378059613,1754713839459,-460.0,0.00021917,2]
[378059614,1754713839468,-464.99529649,0.00021917,2]
[378059615,1754713839478,-461.67429037,0.00021917,2]
[378059616,1754713839487,-460.0,0.00021917,2]
[378059617,1754713839496,-498.98923089,0.00021917,2]
[378059618,1754713839505,-461.83051365,0.00021917,2]
[378059619,1754713839514,-460.0,0.00021917,2]
[378059620,1754713839524,-460.0,0.00021917,2]
[378059621,1754713839534,-464.05082737,0.00021917,2]
[378059622,1754713839543,-460.0,0.00021917,2]
[378059623,1754713839553,-460.0,0.00021917,2]
[378059624,1754713839562,-465.09773716,0.00021917,2]
[378059625,1754713839572,-463.61242706,0.00021917,2]
[378059626,1754713839582,-460.0,0.00021917,2]
[378059627,1754713839591,-460.0,0.00021917,2]
[378059628,1754713839601,-484.28583884,0.00021917,2]
[378059629,1754713839611,-460.0,0.00021917,2]
[378059630,1754713839620,-462.48184951,0.00021917,2]
[378059631,1754713839630,-460.0,0.00021917,2]
[378059632,1754713839639,-471.43309247,0.00021917,2]
[378059633,1754713839648,-461.64355149,0.00021917,2]
[378059634,1754713839658,-464.42400446,0.00021917,2]
[378059635,1754713839668,-460.0,0.00021917,2]
[378059636,1754713839677,-460.0,0.00021917,2]
[378059637,1754713839687,-462.29669837,0.00021917,2]
[378059638,1754713839697,-461.56613938,0.00021917,2]
[378059639,1754713839707,-460.0,0.00021917,2]
[378059640,1754713839716,-460.0,0.00021917,2]
[378059641,1754713839726,-460.0,0.00021917,2]
[378059642,1754713839736,-446.10618781,0.00021917,2]
[378059643,1754713839746,-460.0,0.00021917,2]
[378059644,1754713839756,-466.75195852,0.00021917,2]
[378059645,1754713839767,-460.0,0.00021917,2]
[378059646,1754713839776,-461.13930182,0.00021917,2]
[378059647,1754713839786,-461.83806551,0.00021917,2]
[378059648,1754713839795,-460.0,0.00021917,2]
[378059649,1754713839806,-462.47651238,0.00021917,2]
[378059650,1754713839816,-496.86206343,0.00021917,2]
[378059651,1754713839825,-460.0,0.00021917,2]
[378059652,1754713839835,-638.99,0.00021917,2]
[378059653,1754713839845,-461.33529775,0.00021917,2]
[378059654,1754713839854,-462.07484117,0.00021917,2]
[378059655,1754713839864,-460.0,0.00021917,2]
[378059656,1754713839874,-460.0,0.00021917,2]
[378059657,1754713839884,-462.25042988,0.00021917,2]
[378059658,1754713839893,-460.0,0.00021917,2]
[378059659,1754713839903,-460.0,0.00021917,2]
[378059660,1754713839913,-460.0,0.00021917,2]
[378059661,1754713839923,-460.0,0.00021917,2]
[378059662,1754713839934,-462.26145824,0.00021917,2]
[378059663,1754713839945,-467.09820774,0.00021917,2]
[378059664,1754713839955,-462.63191555,0.00021917,2]
[378059665,1754713839965,-460.0,0.00021917,2]
[378059666,1754713839976,-460.0,0.00021917,2]
[378059667,1754713839986,-460.0,0.00021917,2]
[378059668,1754713839996,-464.48445205,0.00021917,2]
[378059669,1754713840006,-283.28302395,0.00021917,2]
[378059670,1754713840017,-460.0,0.00021917,2]
[378059671,1754713840027,-463.56071694,0.00021917,2]
[378059672,1754713840036,-460.0,0.00021917,2]
[378059673,1754713840047,-466.20986773,0.00021917,2]
[378059674,1754713840057,-292.53742599,0.00021917,2]
[378059675,1754713840066,-460.0,0.00021917,2]
[378059676,1754713840075,-463.59607718,0.00021917,2]
[378059677,1754713840085,-461.50962899,0.00021917,2]
[378059678,1754713840095,-460.63524685,0.00021917,2]
[378059679,1754713840105,-460.0,0.00021917,2]
[378059680,1754713840114,-463.88607326,0.00021917,2]
[378059681,1754713840124,-460.0,0.00021917,2]
[378059682,1754713840133,-460.0,0.00021917,2]
[378059683,1754713840142,-460.0,0.00021917,2]
[378059684,1754713840151,-460.0,0.00021917,2]
[378059685,1754713840161,-464.88125998,0.00021917,2]
[378059686,1754713840172,-460.0,0.00021917,2]
[378059687,1754713840182,-465.89376826,0.00021917,2]
[378059688,1754713840191,-391.93136882,0.00021917,2]
[378059689,1754713840200,-612.0,0.00021917,2]
[378059690,1754713840209,-460.0,0.00021917,2]
[378059691,1754713840219,-460.0,0.00021917,2]
[378059692,1754713840229,-461.82687398,0.00021917,2]
[378059693,1754713840239,-460.0,0.00021917,2]
[378059694,1754713840248,-460.0,0.00021917,2]
[378059695,1754713840258,-462.47259393,0.00021917,2]
[378059696,1754713840267,-460.0,0.00021917,2]
[378059697,1754713840277,-460.0,0.00021917,2]
[378059698,1754713840287,-460.0,0.00021917,2]
[378059699,1754713840296,-460.0,0.00021917,2]
[378059700,1754713840306,-461.09977601,0.00021917,2]
[378059701,1754713840315,-382.51864406,0.00021917,2]
[378059702,1754713840325,-460.0,0.00021917,2]
[378059703,1754713840334,-416.99574239,0.00021917,2]
[378059704,1754713840460,-460.0,0.00021917,2]
[378059705,1754713840470,-460.0,0.00021917,2]
[378059706,1754713840479,-462.74594076,0.00021917,2]
[378059707,1754713840488,-518.64,0.00021917,2]
[378059708,1754713840498,-460.0,0.00021917,2]
[378059709,1754713840507,-463.53069598,0.00021917,2]
[378059710,1754713840517,-460.0,0.00021917,2]
[378059711,1754713840527,-460.0,0.00021917,2]
[378059712,1754713840536,-460.0,0.00021917,2]
[378059713,1754713840546,-460.0,0.00021917,2]
[378059714,1754713840555,-460.0,0.00021917,2]
[378059715,1754713840566,-460.0,0.00021917,2]
[378059716,1754713840575,-460.0,0.00021917,2]
[378059717,1754713840585,-460.0,0.00021917,2]
[378059718,1754713840594,-461.41853539,0.00021917,2]
[378059719,1754713840604,-460.0,0.00021917,2]
[378059720,1754713840613,-461.42172444,0.00021917,2]
[378059721,1754713840623,-460.0,0.00021917,2]
[378059722,1754713840632,-460.0,0.00021917,2]
[378059723,1754713840641,-462.01726804,0.00021917,2]
[378059724,1754713840651,-463.44220067,0.00021917,2]
[378059725,1754713840661,-464.84460161,0.00021917,2]
[378059726,1754713840670,-460.85518564,0.00021917,2]
[378059727,1754713840681,-462.37168746,0.00021917,2]
[378059728,1754713840691,-462.64996051,0.00021917,2]
[378059729,1754713840700,-460.0,0.00021917,2]
[378059730,1754713840710,-466.9996677,0.00021917,2]
[378059731,1754713840720,-460.0,0.00021917,2]
[378059732,1754713840729,-461.25198803,0.00021917,2]
[378059733,1754713840739,-460.0,0.00021917,2]
[378059734,1754713840748,-460.0,0.00021917,2]
[378059735,1754713840758,-460.0,0.00021917,2]
[378059736,1754713840767,-462.08963934,0.00021917,2]
[378059738,1754713840777,-460.0,0.00021917,2]
[378059739,1754713840787,-460.0,0.00021917,2]
[378059741,1754713840796,-463.81229122,0.00021917,2]
[378059743,1754713840806,-460.0,0.00021917,2]
[378059744,1754713840815,-464.59677058,0.00021917,2]
[378059745,1754713840825,-460.0,0.00021917,2]
[378059746,1754713840834,-317.64479863,0.00021917,2]
[378059747,1754713840843,-460.0,0.00021917,2]
[378059749,1754713840852,-555.7707604,0.00021917,2]
[378059751,1754713840861,-463.9915542,0.00021917,2]
[378059753,1754713840870,-460.0,0.00021917,2]
[378059755,1754713840879,-461.75355816,0.00021917,2]
[378059757,1754713840888,-460.0,0.00021917,2]
[378059759,1754713840898,-460.0,0.00021917,2]
[378059761,1754713840907,-461.05677666,0.00021917,2]
[378059762,1754713840917,-460.0,0.00021917,2]
[378059764,1754713840926,-460.41558624,0.00021917,2]
[378059766,1754713840936,-460.0,0.00021917,2]
[378059768,1754713840945,-460.0,0.00021917,2]
[378059770,1754713840955,-460.0,0.00021917,2]
[378059772,1754713840964,-460.0,0.00021917,2]
[378059774,1754713840973,-460.0,0.00021917,2]
[378059775,1754713840982,-460.0,0.00021917,2]
[378059776,1754713840992,-460.0,0.00021917,2]
[378059777,1754713841001,-598.83283815,0.00021917,2]
[378059778,1754713841011,-460.0,0.00021917,2]
[378059779,1754713841020,-460.0,0.00021917,2]
[378059780,1754713841030,-460.0,0.00021917,2]
[378059781,1754713841039,-463.46256331,0.00021917,2]
[378059782,1754713841049,-460.0,0.00021917,2]
[378059783,1754713841059,-460.0,0.00021917,2]
[378059784,1754713841070,-368.16803903,0.00021917,2]
[378059785,1754713841080,-460.0,0.00021917,2]
[378059786,1754713841090,-1004.09629304,0.00021917,2]
[378059787,1754713841100,-460.0,0.00021917,2]
[378059788,1754713841110,-462.46697434,0.00021917,2]
[378059790,1754713841120,-460.0,0.00021917,2]
[378059791,1754713841130,-460.0,0.00021917,2]
[378059793,1754713841139,-460.0,0.00021917,2]
[378059795,1754713841150,-461.98028292,0.00021917,2]
[378059796,1754713841161,-460.0,0.00021917,2]
[378059797,1754713841173,-460.0,0.00021917,2]
[378059798,1754713841183,-462.89276353,0.00021917,2]
[378059799,1754713841193,-460.0,0.00021917,2]
[378059800,1754713841205,-480.28,0.00021917,2]
[378059801,1754713841216,-460.0,0.00021917,2]
[378059802,1754713841227,-463.51613763,0.00021917,2]
[378059803,1754713841239,-461.30574509,0.00021917,2]
[378059804,1754713841250,-460.0,0.00021917,2]
[378059805,1754713841259,-460.0,0.00021917,2]
[378059806,1754713841270,-463.7585469,0.00021917,2]
[378059807,1754713841280,-464.67179982,0.00021917,2]
[378059808,1754713841289,-460.0,0.00021917,2]
[378059809,1754713841299,-465.84417056,0.00021917,2]
[378059810,1754713841308,-460.0,0.00021917,2]
[378059811,1754713841319,-465.41306845,0.00021917,2]
[378059812,1754713841328,-460.0,0.00021917,2]
[378059813,1754713841339,-460.0,0.00021917,2]
[378059814,1754713841349,-460.0,0.00021917,2]
[378059815,1754713841359,-460.0,0.00021917,2]
[378059816,1754713841368,-460.0,0.00021917,2]
[378059817,1754713841378,-460.0,0.00021917,2]
[378059818,1754713841387,-461.98271651,0.00021917,2]
[378059819,1754713841397,-460.0,0.00021917,2]
[378059820,1754713841406,-460.0,0.00021917,2]
[378059821,1754713841416,-460.0,0.00021917,2]
[378059822,1754713841425,-460.0,0.00021917,2]
[378059823,1754713841436,-591.63606736,0.00021917,2]
[378059824,1754713841446,-467.4534837,0.00021917,2]
[378059825,1754713841456,-463.25493777,0.00021917,2]
[378059826,1754713841466,-460.0,0.00021917,2]
[378059827,1754713841475,-460.0,0.00021917,2]
[378059828,1754713841485,-460.0,0.00021917,2]
[378059829,1754713841495,-460.0,0.00021917,2]
[378059830,1754713841504,-460.0,0.00021917,2]
[378059831,1754713841513,-462.94255862,0.00021917,2]
[378059832,1754713841524,-460.0,0.00021917,2]
[378059833,1754713841533,-460.0,0.00021917,2]
[378059834,1754713841542,-461.12645199,0.00021917,2]
[378059835,1754713841552,-711.13,0.00021917,2]
[378059836,1754713841562,-460.0,0.00021917,2]
[378059837,1754713841571,-467.23422297,0.00021917,2]
[378059838,1754713841581,-463.54575353,0.00021917,2]
[378059839,1754713841590,-460.0,0.00021917,2]
[378059840,1754713841600,-1177.39,0.00021917,2]
[378059841,1754713841609,-460.0,0.00021917,2]
[378059842,1754713841619,-460.0,0.00021917,2]
[378059843,1754713841629,-460.0,0.00021917,2]
[378059844,1754713841637,-460.0,0.00021917,2]
[378059845,1754713841647,-460.0,0.00021917,2]
[378059846,1754713841657,-1450.18,0.00021917,2]
[378059847,1754713841666,-460.0,0.00021917,2]
[378059848,1754713841675,-460.0,0.00021917,2]
[378059849,1754713841685,-460.0,0.00021917,2]
[378059850,1754713841694,-468.10968844,0.00021917,2]
[378059851,1754713841704,-460.0,0.00021917,2]
[378059852,1754713841714,-461.25917136,0.00021917,2]
[378059853,1754713841724,-475.39172222,0.00021917,2]
[378059854,1754713841735,-460.0,0.00021917,2]
[378059855,1754713841744,-462.52751253,0.00021917,2]
[378059856,1754713841754,-460.0,0.00021917,2]
[378059857,1754713841764,-460.0,0.00021917,2]
[378059858,1754713841775,-460.0,0.00021917,2]
[378059859,1754713841784,-460.0,0.00021917,2]
[378059860,1754713841793,-460.0,0.00021917,2]
[378059861,1754713841802,-460.0,0.00021917,2]
[378059862,1754713841812,-460.0,0.00021917,2]
[378059863,1754713841821,-460.0,0.00021917,2]
[378059864,1754713841831,-460.0,0.00021917,2]
[378059865,1754713841841,-461.44240577,0.00021917,2]
[378059866,1754713841850,-460.61045143,0.00021917,2]
[378059867,1754713841860,-460.0,0.00021917,2]
[378059868,1754713841870,-460.0,0.00021917,2]
[378059869,1754713841879,-460.0,0.00021917,2]
[378059870,1754713841889,-460.0,0.00021917,2]
[378059871,1754713841898,-461.85449889,0.00021917,2]
[378059872,1754713841908,-460.0,0.00021917,2]
[378059873,1754713841917,-462.97633861,0.00021917,2]
[378059874,1754713841926,-464.71121682,0.00021917,2]
[378059875,1754713841936,-791.54,0.00021917,2]
[378059876,1754713841945,-460.0,0.00021917,2]
[378059877,1754713841954,-465.2941641,0.00021917,2]
[378059878,1754713841964,-321.88817901,0.00021917,2]
[378059879,1754713841973,-2001.94,0.00021917,2]
[378059880,1754713841982,-461.47867843,0.00021917,2]
[378059881,1754713841991,-460.0,0.00021917,2]
[378059882,1754713842000,-1145.59,0.00021917,2]
[378059883,1754713842010,-1774.2,0.00021917,2]
[378059884,1754713842019,-460.0,0.00021917,2]
[378059885,1754713842028,-464.09773807,0.00021917,2]
[378059886,1754713842038,-464.1149455,0.00021917,2]
[378059887,1754713842047,-460.0,0.00021917,2]
[378059888,1754713842056,-460.0,0.00021917,2]
[378059889,1754713842066,-461.88360051,0.00021917,2]
[378059890,1754713842076,-460.0,0.00021917,2]
[378059891,1754713842085,-463.07612979,0.00021917,2]
[378059892,1754713842094,-462.84325687,0.00021917,2]
[378059893,1754713842104,-460.0,0.00021917,2]
[378059894,1754713842115,-471.60113941,0.00021917,2]
[378059895,1754713842124,-466.12234804,0.00021917,2]
[378059896,1754713842136,-460.0,0.00021917,2]
[378059897,1754713842145,-573.41,0.00021917,2]
[378059898,1754713842155,-460.0,0.00021917,2]
[378059899,1754713842165,-460.0,0.00021917,2]
[378059900,1754713842179,-460.0,0.00021917,2]
[378059901,1754713842189,-460.0,0.00021917,2]
[378059902,1754713842198,-460.0,0.00021917,2]
[378059903,1754713842207,-460.0,0.00021917,2]
[378059904,1754713842216,-460.0,0.00021917,2]
[378059905,1754713842225,-460.0,0.00021917,2]
[378059906,1754713842235,-468.82679526,0.00021917,2]
[378059907,1754713842244,-460.0,0.00021917,2]
[378059908,1754713842256,-465.38542534,0.00021917,2]
[378059909,1754713842265,-460.0,0.00021917,2]
[378059910,1754713842275,-460.0,0.00021917,2]
[378059911,1754713842285,-460.0,0.00021917,2]
[378059912,1754713842294,-460.0,0.00021917,2]
[378059913,1754713842303,-460.0,0.00021917,2]
[378059914,1754713842313,-266.011208,0.00021917,2]
[378059915,1754713842323,-548.41,0.00021917,2]
[378059916,1754713842332,-487.8,0.00021917,2]
[378059917,1754713842341,-460.0,0.00021917,2]
[378059918,1754713842351,-460.0,0.00021917,2]
[378059919,1754713842362,-460.0,0.00021917,2]
[378059920,1754713842371,-460.0,0.00021917,2]
[378059921,1754713842380,-1615.05,0.00021917,2]
[378059922,1754713842389,-460.60544611,0.00021917,2]
[378059923,1754713842399,-460.76143451,0.00021917,2]
[378059924,1754713842408,-460.0,0.00021917,2]
[378059925,1754713842417,-463.36778523,0.00021917,2]
[378059926,1754713842426,-460.0,0.00021917,2]
[378059927,1754713842436,-460.0,0.00021917,2]
[378059928,1754713842445,-460.0,0.00021917,2]